bitfinex/quotes_BTCUSD_20250109
["timestamp","ask_amount","ask_price","bid_price","bid_amount"]
[1736416292428,0.50955365,93775.0,93774.0,0.15085778]
[1736416292739,0.51006396,93775.0,93774.0,0.14485778]
[1736416292949,0.51006396,93775.0,93774.0,0.14685778]
[1736416293110,0.51006396,93775.0,93774.0,0.14285778]
[1736416293324,0.36329,93769.0,93768.0,0.09526965]
[1736416293724,0.15,93768.0,93767.0,0.18410114]
[1736416294059,0.15,93768.0,93767.0,0.2884009]
[1736416294391,0.15,93768.0,93767.0,0.14554312]
[1736416295135,0.21329,93769.0,93767.0,0.10429976]
[1736416295374,0.363294,93767.0,93765.0,0.19046661]
[1736416295600,0.0761,93766.0,93765.0,0.19046661]
[1736416295791,0.15,93764.0,93763.0,0.09530753]
[1736416296155,0.1505146,93764.0,93763.0,0.09530753]
[1736416296354,0.1505146,93764.0,93762.0,0.02]
[1736416296355,0.363303,93763.0,93762.0,0.02]
[1736416296675,0.3638176,93763.0,93762.0,0.02]
[1736416299045,0.38243773,93763.0,93762.0,0.02]
[1736416299487,0.38443773,93763.0,93762.0,0.02]
[1736416309515,0.38443773,93763.0,93762.0,0.00172518]
[1736416309684,4.13102252,93763.0,93762.0,0.00172518]
[1736416310300,0.15,93750.0,93748.0,0.12451534]
[1736416310505,0.15,93750.0,93724.0,0.0001704]
[1736416310506,0.15,93743.0,93741.0,0.05936019]
[1736416310729,0.363351,93742.0,93741.0,0.05936019]
[1736416310930,0.36387709,93742.0,93741.0,0.05936019]
[1736416311156,0.15,93735.0,93729.0,0.04324336]
[1736416311983,0.363369,93734.0,93729.0,0.04324336]
[1736416312478,0.363369,93734.0,93733.0,0.0021704]
[1736416313146,0.363369,93734.0,93733.0,0.0011704]
[1736416314535,0.488469,93734.0,93733.0,0.0011704]
[1736416314798,0.488469,93734.0,93733.0,0.0031704]
[1736416315382,0.488469,93734.0,93733.0,0.0021704]
[1736416315589,0.488469,93734.0,93733.0,0.0001704]
[1736416315739,0.489469,93734.0,93733.0,0.0001704]
[1736416315940,0.490469,93734.0,93733.0,0.0001704]
[1736416322974,0.365369,93734.0,93733.0,0.0001704]
[1736416323190,0.365369,93734.0,93733.0,0.14571352]
[1736416323191,0.215369,93734.0,93733.0,0.14571352]
[1736416323403,0.002,93734.0,93733.0,0.14571352]
[1736416324167,0.001,93734.0,93733.0,0.14571352]
[1736416324679,0.23771225,93735.0,93733.0,0.14871352]
[1736416324883,0.23771225,93735.0,93734.0,0.10429976]
[1736416325562,0.23771225,93735.0,93734.0,0.18229976]
[1736416326344,0.23771225,93735.0,93734.0,0.10429976]
[1736416326713,0.23771225,93735.0,93734.0,0.14554312]
[1736416327155,0.38771225,93735.0,93734.0,0.10429976]
[1736416327746,0.38771225,93735.0,93734.0,0.002]
[1736416327969,0.38771225,93735.0,93734.0,0.001]
[1736416328397,0.15,93734.0,93733.0,0.0001704]
[1736416355020,0.15,93734.0,93733.0,0.09514085]
[1736416355691,0.15,93734.0,93733.0,0.14261184]
[1736416357053,0.15,93734.0,93733.0,0.0001704]
[1736416358742,0.15,93734.0,93733.0,0.14352443]
[1736416359489,0.15,93734.0,93733.0,0.0001704]
[1736416363192,0.15,93734.0,93733.0,0.14353637]
[1736416364082,0.15,93734.0,93733.0,0.0001704]
[1736416370246,0.23771225,93735.0,93734.0,0.04124336]
[1736416370454,0.23771225,93735.0,93734.0,0.25436477]
[1736416370868,0.38771225,93735.0,93734.0,0.25436477]
[1736416371064,0.23771225,93735.0,93734.0,0.25436477]
[1736416371410,0.23971225,93735.0,93734.0,0.25436477]
[1736416373705,0.23971225,93735.0,93734.0,0.54115447]
[1736416374698,0.23971225,93735.0,93734.0,0.25436477]
[1736416381903,0.23971225,93735.0,93734.0,0.22114312]
[1736416383131,0.23971225,93735.0,93734.0,0.25429279]
[1736416383726,0.23971225,93735.0,93734.0,0.54108249]
[1736416384156,0.23971225,93735.0,93734.0,0.25429279]
[1736416386075,0.23971225,93735.0,93734.0,0.10429976]
[1736416386257,0.15,93734.0,93733.0,0.0001704]
[1736416386844,0.21156503,93735.0,93733.0,0.0001704]
[1736416387175,0.213375,93732.0,93729.0,0.0955166]
[1736416387590,0.21339,93725.0,93724.0,0.0001704]
[1736416388853,0.36339,93725.0,93724.0,0.0001704]
[1736416389267,0.36339,93725.0,93724.0,0.0011704]
[1736416389452,0.38041263,93725.0,93724.0,0.0011704]
[1736416394379,3.73941263,93725.0,93724.0,0.0011704]
[1736416394583,3.68941263,93725.0,93724.0,0.0011704]
[1736416395290,0.213428,93708.0,93707.0,0.0955166]
[1736416395494,0.363428,93708.0,93707.0,0.0955166]
[1736416395929,0.213431,93707.0,93704.0,0.00010645]
[1736416396348,0.213435,93705.0,93704.0,0.00010645]
[1736416397124,0.213435,93705.0,93704.0,0.00110645]
[1736416397731,0.213435,93705.0,93704.0,0.00010645]
[1736416397924,0.213435,93705.0,93704.0,0.00110645]
[1736416398130,0.213435,93705.0,93704.0,0.00310645]
[1736416401569,0.23121955,93705.0,93704.0,0.00310645]
[1736416402528,0.38121955,93705.0,93704.0,0.00310645]
[1736416404331,0.38121955,93705.0,93704.0,0.00010645]
[1736416404565,0.38121955,93705.0,93704.0,0.00110645]
[1736416404771,0.38121955,93705.0,93704.0,0.00310645]
[1736416406616,0.38121955,93705.0,93704.0,0.00210645]
[1736416406994,0.38121955,93705.0,93704.0,0.00310645]
[1736416407227,0.38121955,93705.0,93704.0,0.00110645]
[1736416407739,0.38121955,93705.0,93704.0,0.00310645]
[1736416410518,0.38121955,93705.0,93704.0,0.07950645]
[1736416411341,0.38121955,93705.0,93704.0,0.00310645]
[1736416412350,0.38121955,93705.0,93704.0,0.00110645]
[1736416412977,0.38175077,93705.0,93704.0,1e-08]
[1736416413191,0.38175077,93705.0,93697.0,0.0001704]
[1736416413192,0.363451,93698.0,93697.0,0.0001704]
[1736416414275,0.408751,93698.0,93697.0,0.0001704]
[1736416414511,0.408751,93698.0,93697.0,0.0011704]
[1736416414917,0.408751,93698.0,93697.0,0.0001704]
[1736416416908,0.412751,93698.0,93697.0,0.0001704]
[1736416419533,0.367451,93698.0,93697.0,0.0001704]
[1736416420552,0.367451,93698.0,93697.0,0.22171352]
[1736416421915,0.363451,93698.0,93697.0,0.22171352]
[1736416422113,0.363451,93698.0,93697.0,0.22271352]
[1736416423958,0.213438,93704.0,93700.0,0.0757]
[1736416424227,0.213438,93704.0,93702.0,0.0757]
[1736416424518,0.213438,93704.0,93703.0,0.10429976]
[1736416424910,0.363438,93704.0,93703.0,0.10429976]
[1736416426169,0.363438,93704.0,93703.0,0.002]
[1736416428186,0.15,93703.0,93702.0,0.04124336]
[1736416429841,0.15,93703.0,93702.0,0.04224336]
[1736416430979,0.15,93703.0,93702.0,0.04424336]
[1736416432871,0.15,93703.0,93702.0,0.003]
[1736416433079,0.15,93701.0,93699.0,0.0498497]
[1736416433282,3.766,93700.0,93699.0,0.0498497]
[1736416433486,4.025347,93700.0,93699.0,0.0498497]
[1736416433687,4.025347,93700.0,93697.0,0.0001704]
[1736416433688,0.213451,93698.0,93697.0,0.0001704]
[1736416433885,2.645451,93698.0,93697.0,0.0001704]
[1736416435333,2.647451,93698.0,93697.0,0.0001704]
[1736416435889,2.648451,93698.0,93697.0,0.0001704]
[1736416436866,2.798451,93698.0,93697.0,0.0001704]
[1736416437433,2.798451,93698.0,93695.0,8e-07]
[1736416437766,0.363456,93696.0,93695.0,8e-07]
[1736416438923,0.365456,93696.0,93695.0,8e-07]
[1736416439273,0.366456,93696.0,93695.0,8e-07]
[1736416439770,0.363465,93692.0,93691.0,2e-07]
[1736416439998,0.363465,93692.0,93691.0,6.406e-05]
[1736416440168,0.363465,93692.0,93691.0,6e-08]
[1736416440373,0.413365,93692.0,93691.0,6e-08]
[1736416441675,0.417535,93692.0,93691.0,6e-08]
[1736416442096,0.419535,93692.0,93691.0,6e-08]
[1736416442526,0.413535,93692.0,93691.0,6e-08]
[1736416442947,0.416535,93692.0,93691.0,6e-08]
[1736416443911,0.420535,93692.0,93691.0,6e-08]
[1736416444152,0.44757156,93692.0,93691.0,6e-08]
[1736416444408,0.416535,93692.0,93691.0,6e-08]
[1736416444670,0.423535,93692.0,93691.0,0.00100006]
[1736416445140,3.538535,93692.0,93691.0,0.00100006]
[1736416445844,3.538535,93692.0,93691.0,6e-08]
[1736416446055,0.423535,93692.0,93691.0,6e-08]
[1736416446274,0.745635,93692.0,93691.0,6e-08]
[1736416447192,0.685576,93687.0,93686.0,0.00013046]
[1736416447663,4.301576,93687.0,93686.0,0.00013046]
[1736416448293,0.363497,93678.0,93677.0,0.0001702]
[1736416448550,0.363497,93678.0,93668.0,0.0001704]
[1736416448551,0.213517,93669.0,93668.0,0.0001704]
[1736416448785,0.213517,93669.0,93668.0,0.00066785]
[1736416449010,0.378517,93669.0,93668.0,0.00066785]
[1736416449280,0.528517,93669.0,93668.0,0.00066785]
[1736416449525,0.528517,93669.0,93651.0,0.09576032]
[1736416449526,0.2724,93668.0,93651.0,0.07734013]
[1736416449743,0.2724,93668.0,93651.0,6.366e-05]
[1736416449744,0.363556,93652.0,93651.0,6.366e-05]
[1736416451476,0.364556,93652.0,93651.0,6.366e-05]
[1736416451748,0.366556,93652.0,93651.0,6.366e-05]
[1736416452269,0.39364244,93652.0,93651.0,6.366e-05]
[1736416461871,0.39364244,93652.0,93651.0,0.07516366]
[1736416463911,0.39064244,93652.0,93651.0,0.07516366]
[1736416464146,0.39264244,93652.0,93651.0,0.07516366]
[1736416470373,0.39264244,93652.0,93651.0,0.11640702]
[1736416472378,0.39164244,93652.0,93651.0,0.11640702]
[1736416472763,0.39064244,93652.0,93651.0,0.11640702]
[1736416472994,0.39164244,93652.0,93651.0,0.11640702]
[1736416474118,0.39264244,93652.0,93651.0,0.11640702]
[1736416475468,0.39164244,93652.0,93651.0,0.11640702]
[1736416475673,0.39164244,93652.0,93651.0,0.11940702]
[1736416475882,0.39064244,93652.0,93651.0,0.11940702]
[1736416476097,0.39064244,93652.0,93651.0,0.12040702]
[1736416476699,0.39064244,93652.0,93651.0,0.11940702]
[1736416477116,0.39064244,93652.0,93651.0,0.11640702]
[1736416477493,0.39064244,93652.0,93651.0,0.11740702]
[1736416477707,0.39064244,93652.0,93651.0,0.11640702]
[1736416478574,0.39064244,93652.0,93651.0,0.11740702]
[1736416478997,0.39064244,93652.0,93651.0,0.22070678]
[1736416479201,0.24064244,93652.0,93651.0,0.22070678]
[1736416479646,0.24064244,93652.0,93651.0,0.25396102]
[1736416480046,0.39064244,93652.0,93651.0,0.25396102]
[1736416480176,0.39264244,93652.0,93651.0,0.25396102]
[1736416480396,0.39864244,93652.0,93651.0,0.25496102]
[1736416480595,0.24864244,93652.0,93651.0,0.25496102]
[1736416480805,0.24864244,93652.0,93651.0,0.44417992]
[1736416481034,0.21389267,93652.0,93651.0,0.53058038]
[1736416481247,0.21389267,93652.0,93651.0,0.38756148]
[1736416481248,0.21689267,93652.0,93651.0,0.38756148]
[1736416481465,0.22389267,93652.0,93651.0,0.38856148]
[1736416481674,0.21689267,93652.0,93651.0,0.38756148]
[1736416481880,0.21689267,93652.0,93651.0,0.30016102]
[1736416482086,0.22389267,93652.0,93651.0,0.30116102]
[1736416482802,0.22089267,93652.0,93651.0,0.30116102]
[1736416483643,0.22389267,93652.0,93651.0,0.30116102]
[1736416485242,0.22389267,93652.0,93651.0,0.54019053]
[1736416485651,0.22389267,93652.0,93651.0,0.50693629]
[1736416486039,0.22389267,93652.0,93651.0,0.26790678]
[1736416486616,0.22389267,93652.0,93651.0,0.45925166]
[1736416487016,0.22389267,93652.0,93651.0,0.26790678]
[1736416487833,0.22389267,93652.0,93651.0,0.45925166]
[1736416489117,0.22389267,93652.0,93651.0,0.41305166]
[1736416490617,0.22389267,93652.0,93651.0,0.22170678]
[1736416491028,0.213552,93654.0,93652.0,0.04124336]
[1736416491183,0.213552,93654.0,93653.0,0.10429976]
[1736416491589,0.23736642,93654.0,93653.0,0.10429976]
[1736416491795,0.23736642,93654.0,93653.0,0.20005869]
[1736416492202,0.23736642,93654.0,93652.0,0.001]
[1736416492203,0.24436642,93654.0,93652.0,0.001]
[1736416493015,0.24436642,93654.0,93652.0,0.09681383]
[1736416493016,0.15,93653.0,93652.0,0.09681383]
[1736416493223,0.03281442,93654.0,93652.0,0.09681383]
[1736416493655,0.24636642,93654.0,93652.0,0.09681383]
[1736416493853,0.23936642,93654.0,93651.0,6.366e-05]
[1736416494126,0.45091842,93654.0,93651.0,6.366e-05]
[1736416494343,0.24436642,93654.0,93653.0,0.001]
[1736416494579,0.24436642,93654.0,93651.0,6.366e-05]
[1736416494580,0.45091842,93654.0,93651.0,6.366e-05]
[1736416494739,0.45391842,93654.0,93651.0,6.366e-05]
[1736416495169,0.45091842,93654.0,93651.0,6.366e-05]
[1736416495551,0.15,93653.0,93651.0,6.366e-05]
[1736416495754,0.363556,93652.0,93651.0,6.366e-05]
[1736416496795,3.979556,93652.0,93651.0,6.366e-05]
[1736416497384,3.981556,93652.0,93651.0,6.366e-05]
[1736416498484,3.985556,93652.0,93651.0,6.366e-05]
[1736416498690,3.985556,93652.0,93651.0,6.6e-07]
[1736416498904,0.369556,93652.0,93651.0,6.6e-07]
[1736416501824,0.691656,93652.0,93651.0,6.6e-07]
[1736416502273,0.213583,93640.0,93639.0,0.0001704]
[1736416502458,0.363583,93640.0,93639.0,0.00032014]
[1736416503019,3.484583,93640.0,93639.0,0.00032014]
[1736416503225,3.159583,93640.0,93639.0,0.00032014]
[1736416503428,2.963583,93640.0,93639.0,0.00032014]
[1736416503670,2.902583,93640.0,93639.0,0.00032014]
[1736416503873,2.904583,93640.0,93639.0,0.00032014]
[1736416504210,2.824583,93640.0,93639.0,0.00032014]
[1736416504369,0.363583,93640.0,93639.0,0.00032014]
[1736416504788,0.520583,93640.0,93639.0,0.00032014]
[1736416504995,0.492583,93640.0,93639.0,0.00032014]
[1736416505450,0.494583,93640.0,93639.0,0.00032014]
[1736416505648,0.533583,93640.0,93639.0,0.00032014]
[1736416505849,0.531583,93640.0,93639.0,0.00032014]
[1736416505992,0.687683,93640.0,93639.0,0.00032014]
[1736416506610,0.685683,93640.0,93639.0,0.00032014]
[1736416507011,0.687683,93640.0,93639.0,0.00032014]
[1736416507208,0.690683,93640.0,93639.0,0.00032014]
[1736416507408,0.687683,93640.0,93639.0,0.00032014]
[1736416507834,0.690683,93640.0,93639.0,0.00032014]
[1736416508847,0.695683,93640.0,93639.0,0.00032014]
[1736416509699,0.72533328,93640.0,93639.0,0.00032014]
[1736416513488,0.72333328,93640.0,93639.0,0.00032014]
[1736416513703,0.72133328,93640.0,93639.0,0.00032014]
[1736416514128,0.71533328,93640.0,93639.0,0.00032014]
[1736416514358,0.56733328,93640.0,93639.0,0.00032014]
[1736416514556,0.56833328,93640.0,93639.0,0.22386326]
[1736416514915,0.56533328,93640.0,93639.0,0.22386326]
[1736416515149,0.56533328,93640.0,93639.0,0.31967709]
[1736416515374,0.56833328,93640.0,93639.0,0.31967709]
[1736416515895,0.56833328,93640.0,93639.0,0.22386326]
[1736416516718,0.56633328,93640.0,93639.0,0.22386326]
[1736416517181,0.56733328,93640.0,93639.0,0.22386326]
[1736416517385,0.56533328,93640.0,93639.0,0.22386326]
[1736416517534,0.56633328,93640.0,93639.0,0.22386326]
[1736416517753,0.56833328,93640.0,93639.0,0.22386326]
[1736416518152,0.56733328,93640.0,93639.0,0.22386326]
[1736416518529,0.56633328,93640.0,93639.0,0.22386326]
[1736416519159,0.56533328,93640.0,93639.0,0.22386326]
[1736416519896,0.56733328,93640.0,93639.0,0.22386326]
[1736416520311,0.56533328,93640.0,93639.0,0.22386326]
[1736416520544,0.56733328,93640.0,93639.0,0.22386326]
[1736416520958,0.56833328,93640.0,93639.0,0.22386326]
[1736416521666,0.56833328,93640.0,93639.0,0.36740925]
[1736416522201,0.56833328,93640.0,93639.0,0.22386326]
[1736416523211,0.56833328,93640.0,93639.0,0.36740165]
[1736416523581,0.538683,93640.0,93639.0,0.22386326]
[1736416523959,0.216583,93640.0,93639.0,0.22386326]
[1736416524158,0.216583,93640.0,93639.0,0.41538113]
[1736416524369,0.214583,93640.0,93639.0,0.41538113]
[1736416524583,0.214583,93640.0,93639.0,0.41738113]
[1736416524791,0.213583,93640.0,93639.0,0.22586326]
[1736416524984,0.213583,93640.0,93639.0,0.22386326]
[1736416525398,0.213583,93640.0,93639.0,0.46306812]
[1736416525847,0.213583,93640.0,93639.0,0.49632463]
[1736416526055,0.213583,93640.0,93639.0,0.25711977]
[1736416526251,0.005,93640.0,93639.0,0.25711977]
[1736416526892,0.005,93640.0,93639.0,0.27907594]
[1736416527293,0.005,93640.0,93639.0,0.27707594]
[1736416527754,0.005,93640.0,93639.0,0.27907594]
[1736416529511,0.005,93640.0,93639.0,0.25911977]
[1736416529891,0.005,93640.0,93639.0,0.25811977]
[1736416531101,0.005,93640.0,93639.0,0.25611977]
[1736416531289,0.005,93640.0,93639.0,0.25811977]
[1736416531777,0.005,93640.0,93639.0,0.30078214]
[1736416531975,0.005,93640.0,93639.0,0.25811456]
[1736416533744,0.005,93640.0,93639.0,0.25611456]
[1736416533970,0.005,93640.0,93639.0,0.25811456]
[1736416535932,0.005,93640.0,93639.0,0.22486326]
[1736416536136,0.005,93640.0,93639.0,0.25810694]
[1736416536344,0.005,93640.0,93639.0,0.22486326]
[1736416536969,0.005,93640.0,93639.0,0.22286326]
[1736416537370,0.005,93640.0,93639.0,0.22486326]
[1736416540133,0.005,93640.0,93639.0,0.2581127]
[1736416542891,0.005,93640.0,93639.0,0.22486326]
[1736416543358,0.005,93640.0,93639.0,0.25812126]
[1736416545090,0.00295368,93640.0,93639.0,0.25812126]
[1736416545314,0.00295368,93640.0,93639.0,0.25812801]
[1736416556770,0.03009038,93647.0,93639.0,0.22486326]
[1736416556960,0.03009038,93647.0,93640.0,0.10429976]
[1736416557166,0.15838163,93677.0,93640.0,0.10429976]
[1736416557167,0.21358,93642.0,93640.0,0.10429976]
[1736416558553,0.21558,93642.0,93640.0,0.10429976]
[1736416558768,0.21558,93642.0,93641.0,0.23946256]
[1736416558976,0.21558,93642.0,93641.0,0.34376232]
[1736416559478,0.21558,93642.0,93641.0,0.10429976]
[1736416559859,0.21458,93642.0,93641.0,0.10429976]
[1736416560028,0.21458,93642.0,93641.0,0.34381153]
[1736416560269,0.21658,93642.0,93641.0,0.34381153]
[1736416560665,0.21658,93642.0,93641.0,0.10429976]
[1736416560666,0.21758,93642.0,93641.0,0.10429976]
[1736416561269,0.004,93642.0,93641.0,0.14486326]
[1736416561551,0.004,93642.0,93641.0,0.22583106]
[1736416561761,0.004,93642.0,93641.0,0.25802944]
[1736416562599,0.004,93642.0,93641.0,0.2660107]
[1736416563435,0.004,93642.0,93641.0,0.23274452]
[1736416563850,0.004,93642.0,93641.0,0.22476326]
[1736416566919,0.004,93642.0,93641.0,0.25799573]
[1736416570443,0.154,93642.0,93641.0,0.17809573]
[1736416570852,0.154,93642.0,93641.0,0.14486326]
[1736416573959,0.154,93642.0,93641.0,0.27992453]
[1736416574165,0.154,93642.0,93641.0,0.23936103]
[1736416574364,0.15,93640.0,93639.0,0.23936103]
[1736416574990,0.0831,93642.0,93638.0,0.14370584]
[1736416575195,0.0821,93642.0,93638.0,0.14370584]
[1736416575614,0.0821,93642.0,93637.0,0.15696923]
[1736416576017,0.0791,93642.0,93637.0,0.15696923]
[1736416576217,0.213586,93639.0,93637.0,0.15696923]
[1736416577723,0.214586,93639.0,93637.0,0.15696923]
[1736416578802,0.215586,93639.0,93637.0,0.15696923]
[1736416584067,0.20561006,93639.0,93637.0,0.15696923]
[1736416595324,0.15,93638.0,93637.0,0.15696923]
[1736416595553,4.136,93638.0,93637.0,0.13561023]
[1736416595790,4.136,93638.0,93637.0,0.11676133]
[1736416595986,3.785,93638.0,93637.0,0.11676133]
[1736416596390,3.786,93638.0,93637.0,0.11676133]
[1736416597068,3.785,93638.0,93637.0,0.11676133]
[1736416597280,3.787,93638.0,93637.0,0.11676133]
[1736416597696,3.788,93638.0,93637.0,0.11676133]
[1736416597892,3.787,93638.0,93637.0,0.11676133]
[1736416598093,3.792,93638.0,93637.0,0.11676133]
[1736416598573,3.78263166,93638.0,93637.0,0.11676133]
[1736416598915,2.35263166,93638.0,93637.0,0.11676133]
[1736416599909,2.35063166,93638.0,93637.0,0.11676133]
[1736416600116,2.35263166,93638.0,93637.0,0.11676133]
[1736416601914,2.35263166,93638.0,93637.0,0.03857502]
[1736416602345,2.35263166,93638.0,93613.0,8.53e-05]
[1736416602346,0.213631,93619.0,93613.0,8.53e-05]
[1736416603635,0.213631,93619.0,93618.0,0.001]
[1736416604677,0.213631,93619.0,93618.0,0.004]
[1736416605498,0.213631,93619.0,93618.0,0.001]
[1736416605700,0.213631,93619.0,93618.0,0.004]
[1736416606511,0.213631,93619.0,93618.0,0.003]
[1736416606755,0.213631,93619.0,93618.0,0.004]
[1736416607643,0.213631,93619.0,93618.0,0.001]
[1736416608714,0.24553798,93619.0,93618.0,0.001]
[1736416616223,0.29183798,93619.0,93618.0,0.001]
[1736416618461,0.44183798,93619.0,93618.0,0.001]
[1736416620737,0.39553798,93619.0,93618.0,0.001]
[1736416621696,0.21364,93615.0,93614.0,0.0405635]
[1736416621901,0.21364,93615.0,93614.0,0.22296326]
[1736416622107,0.535709,93629.0,93628.0,0.1186635]
[1736416622311,0.535709,93629.0,93628.0,0.22296326]
[1736416622689,0.213609,93629.0,93628.0,0.22296326]
[1736416623602,0.213609,93629.0,93628.0,0.22496326]
[1736416623789,0.24153658,93629.0,93628.0,0.22496326]
[1736416625295,0.24153658,93629.0,93628.0,0.22296326]
[1736416625806,0.24153658,93629.0,93628.0,0.22496326]
[1736416626392,0.24153658,93629.0,93628.0,0.22296326]
[1736416626796,0.24153658,93629.0,93628.0,0.22496326]
[1736416628778,0.24153658,93629.0,93628.0,0.3686691]
[1736416629080,0.24153658,93629.0,93628.0,0.3666691]
[1736416629285,0.24153658,93629.0,93628.0,0.22296326]
[1736416629417,0.24153658,93629.0,93628.0,0.22496326]
[1736416635868,0.24153658,93629.0,93628.0,0.41657105]
[1736416638039,0.24153658,93629.0,93628.0,0.22496326]
[1736416646306,0.24153658,93629.0,93628.0,0.41628493]
[1736416649740,0.24153658,93629.0,93628.0,0.41428493]
[1736416650133,0.24153658,93629.0,93628.0,0.41628493]
[1736416652424,0.02792758,93629.0,93628.0,0.41628493]
[1736416652625,0.213605,93631.0,93628.0,0.44951659]
[1736416652826,0.213605,93631.0,93630.0,0.0405635]
[1736416653044,0.213605,93631.0,93630.0,0.14486326]
[1736416654254,0.213605,93631.0,93630.0,0.36940732]
[1736416654458,0.213605,93631.0,93630.0,0.37040732]
[1736416655015,0.23739363,93631.0,93630.0,0.37040732]
[1736416655615,0.23739363,93631.0,93630.0,0.37140732]
[1736416656863,0.213573,93645.0,93630.0,0.37140732]
[1736416656864,0.213593,93636.0,93635.0,0.0405635]
[1736416657067,0.213593,93636.0,93635.0,0.14486326]
[1736416657269,0.213593,93636.0,93635.0,0.17812898]
[1736416657428,0.15,93654.0,93635.0,0.14486326]
[1736416657429,0.0245347,93638.0,93635.0,0.14486326]
[1736416657630,0.21359,93637.0,93636.0,0.10429976]
[1736416657854,0.21359,93637.0,93636.0,0.14486326]
[1736416658054,0.21359,93637.0,93636.0,0.28829549]
[1736416658416,0.21359,93637.0,93636.0,0.36479549]
[1736416658620,0.21359,93637.0,93636.0,0.22136326]
[1736416659460,0.001,93637.0,93636.0,0.29143999]
[1736416659798,0.001,93637.0,93636.0,0.22136326]
[1736416661233,0.001,93637.0,93636.0,0.4125532]
[1736416661653,0.001,93637.0,93636.0,0.65076888]
[1736416662726,0.001,93637.0,93636.0,0.45957894]
[1736416662864,0.001,93637.0,93636.0,0.5638787]
[1736416663063,0.02448593,93644.0,93643.0,0.0405635]
[1736416663274,0.213522,93668.0,93667.0,0.1233635]
[1736416663471,0.36360195,93668.0,93667.0,0.1233635]
[1736416664029,0.36360195,93668.0,93667.0,0.0405635]
[1736416664797,0.38750545,93668.0,93667.0,0.0405635]
[1736416665000,0.39350545,93668.0,93667.0,0.0405635]
[1736416665603,0.40250545,93668.0,93667.0,0.0415635]
[1736416666389,0.39350545,93668.0,93667.0,0.0405635]
[1736416666661,0.40250545,93668.0,93667.0,0.0415635]
[1736416667092,0.39650545,93668.0,93667.0,0.0415635]
[1736416667400,0.40250545,93668.0,93667.0,0.0415635]
[1736416669987,0.25250545,93668.0,93667.0,0.0415635]
[1736416677976,0.03898345,93668.0,93667.0,0.22276326]
[1736416679702,0.02998345,93668.0,93667.0,0.22176326]
[1736416680286,0.03598345,93668.0,93667.0,0.22276326]
[1736416680690,0.02998345,93668.0,93667.0,0.22276326]
[1736416681087,0.03198345,93668.0,93667.0,0.22276326]
[1736416681691,0.02998345,93668.0,93667.0,0.22276326]
[1736416682211,0.03198345,93668.0,93667.0,0.22276326]
[1736416687463,0.03198345,93668.0,93667.0,0.24503959]
[1736416687645,0.00807995,93668.0,93667.0,0.43628526]
[1736416688470,0.00807995,93668.0,93667.0,0.53174077]
[1736416690114,0.00807995,93668.0,93667.0,0.43628526]
[1736416690844,0.00807995,93668.0,93667.0,0.53174077]
[1736416691374,0.00807995,93668.0,93667.0,0.56488254]
[1736416691609,0.00807995,93668.0,93667.0,0.46942703]
[1736416692018,0.00807995,93668.0,93667.0,0.56488254]
[1736416692250,7.995e-05,93668.0,93667.0,0.56388254]
[1736416692737,0.00307995,93668.0,93667.0,0.56388254]
[1736416693145,0.01007995,93668.0,93667.0,0.56488254]
[1736416693349,0.00307995,93668.0,93667.0,0.56388254]
[1736416693560,0.01007995,93668.0,93667.0,0.56488254]
[1736416694887,0.00707995,93668.0,93667.0,0.56488254]
[1736416695379,0.00707995,93668.0,93667.0,0.6126103]
[1736416695515,0.00907995,93668.0,93667.0,0.6126103]
[1736416696693,0.00907995,93668.0,93667.0,0.46942703]
[1736416698596,0.00907995,93668.0,93667.0,0.66033806]
[1736416699812,0.00907995,93668.0,93667.0,0.46942703]
[1736416700214,0.0219654,93670.0,93669.0,0.0405635]
[1736416700523,0.0001704,93675.0,93674.0,0.2540695]
[1736416700692,0.0001704,93675.0,93674.0,0.47391103]
[1736416701169,0.0001704,93675.0,93674.0,0.61692361]
[1736416701852,0.01934539,93675.0,93674.0,0.61692361]
[1736416702053,0.01934539,93675.0,93674.0,0.47391103]
[1736416702241,0.01934539,93675.0,93674.0,0.57821079]
[1736416702779,0.02334539,93675.0,93674.0,0.57821079]
[1736416702985,0.03234539,93675.0,93674.0,0.57921079]
[1736416703388,0.03234539,93675.0,93674.0,0.62441079]
[1736416706511,0.02834539,93675.0,93674.0,0.62441079]
[1736416706861,0.01934539,93675.0,93674.0,0.62341079]
[1736416707220,0.02734539,93675.0,93674.0,0.91164403]
[1736416707729,0.02734539,93675.0,93674.0,0.62441079]
[1736416708732,0.03134539,93675.0,93674.0,0.62441079]
[1736416709866,0.01934539,93675.0,93674.0,0.62341079]
[1736416710175,0.03134539,93675.0,93674.0,0.62441079]
[1736416716371,0.0121704,93675.0,93674.0,0.62441079]
[1736416716781,0.01912885,93676.0,93674.0,0.62441079]
[1736416716991,0.0001704,93678.0,93675.0,0.32520859]
[1736416717201,0.0001704,93678.0,93676.0,0.43334253]
[1736416717969,0.02009451,93677.0,93676.0,0.43334253]
[1736416718188,0.02009451,93677.0,93676.0,0.47390603]
[1736416719430,0.02909451,93677.0,93676.0,0.47490603]
[1736416719755,0.02909451,93677.0,93676.0,0.57920579]
[1736416719951,0.03209451,93677.0,93676.0,0.59993446]
[1736416720317,0.02592486,93677.0,93676.0,0.59993446]
[1736416722755,0.02292486,93677.0,93676.0,0.59993446]
[1736416723036,0.02592486,93677.0,93676.0,0.59993446]
[1736416723279,0.01692486,93677.0,93676.0,0.59893446]
[1736416723454,0.01692486,93677.0,93676.0,0.64421835]
[1736416723660,0.02592486,93677.0,93676.0,0.64421835]
[1736416724898,0.012,93677.0,93676.0,0.64421835]
[1736416725400,0.012,93677.0,93676.0,0.65697446]
[1736416726822,0.012,93677.0,93676.0,0.5526747]
[1736416727827,0.012,93677.0,93676.0,0.53991859]
[1736416729064,0.012,93677.0,93676.0,0.5526747]
[1736416729942,0.012,93677.0,93676.0,0.53991859]
[1736416731250,0.012,93677.0,93676.0,0.5526747]
[1736416732243,0.012,93677.0,93676.0,0.53991859]
[1736416732646,0.012,93677.0,93676.0,0.48287859]
[1736416733000,0.012,93677.0,93676.0,0.5526347]
[1736416735782,0.012,93677.0,93676.0,0.65693446]
[1736416736149,0.012,93677.0,93676.0,1.07662732]
[1736416736969,0.01989424,93678.0,93676.0,1.07662732]
[1736416737167,0.01989424,93678.0,93677.0,0.13850884]
[1736416737883,0.01989424,93678.0,93677.0,0.1464814]
[1736416738083,0.01989424,93678.0,93677.0,0.25078116]
[1736416738401,0.01989424,93678.0,93677.0,0.24971385]
[1736416739211,0.01989424,93678.0,93677.0,0.14541409]